Cogmind - Beta 15 @@@ ROGUE MODE // 2025.10.19 @ 18:24:27 Player: Bean Result: Destroyed by S-27 Virus with Autogun Performance ------------- Evolutions (6) 3000 Regions Visited (10) 2000 Robots Destroyed (51) 255 Value Destroyed (1558) 1558 Prototype IDs (24) 480 Alien Tech Used (0) 0 Bonus (1144) 1144 TOTAL SCORE: 8437 Bonus ------- High Alert Combat Kills 116 Follower Combat Kills 28 Entered Garrisons 200 Used RIF Installer 500 Aligned with FarCom 300 Cogmind --------- Core Integrity 0/1150 Matter 134/300 Energy 99/100 System Corruption 0% Temperature Cool (0) Movement Core (50) Location -4/Garrison Parts ------- > --- POWER (3) -------- (None) > --- PROPULSION (6) --- (None) > --- UTILITY (8) ------ (None) > --- WEAPON (2) ------- (None) > --- INVENTORY (5) ---- Cloak of Protection Tesla Rifle Peak State ------------ > --- POWER ------------ Light Deuterium Engine Angular Momentum Engine Light Fission Core > --- PROPULSION ------- Light Treads Light Treads Improved Treads Improved Treads Advanced Treads Improved Medium Treads > --- UTILITY ---------- Advanced Heat Sink Medium Storage Unit Enhanced Optical Array Cloak of Protection Hardened Medium Armor Plating Improved Light Armor Plating > --- WEAPON ----------- Heavy Rocket Launcher Scythe > --- INVENTORY -------- Improved Heat Sink Improved Heat Sink Improved Heat Sink Advanced Targeting Computer Particle Gun Improved Grenade Launcher Axe [Rating: 61] Favorites ----------- Power Light Nuclear Core Engine Ion Engine Power Core Light Nuclear Core Propulsion Light Treads Treads Light Treads Leg Carbon-fiber Leg Flight Unit Field Propulsion Drive Utility Medium Storage Unit Device Improved Heat Sink Storage Medium Storage Unit Processor Enhanced Optical Array Protection Improved Light Armor Plating Weapon Scythe Energy Gun Particle Gun Ballistic Gun Light Assault Rifle Launcher Heavy Rocket Launcher Slashing Weapon Scythe Build | -11 -10 -10 -10 -9 -8 -7 -6 -5 -4 -4 ------- Run | Yrd Mat Min Exi Min Mat Fac Fac Fac Fac Gar Slots Evolved 12 | . . . . . 4 2 2 2 2 . Power 2 | . . . . . 1 . . 1 . . Propulsion 4 | . . . . . 1 2 1 . . . Utility 6 | . . . . . 2 . 1 1 2 . Weapon . | . . . . . . . . . . . Parts Attached 66 | 6 1 5 2 . 29 4 8 6 5 . Power 12 | 1 . . 1 . 6 1 2 . 1 . Engine 7 | 1 . . . . 4 1 1 . . . Core 5 | . . . 1 . 2 . 1 . 1 . Reactor . | . . . . . . . . . . . Propulsion 22 | 2 . . . . 12 2 1 5 . . Treads 9 | 2 . . . . 4 2 1 . . . Leg 8 | . . . . . 8 . . . . . Wheel . | . . . . . . . . . . . Hover . | . . . . . . . . . . . Flight 5 | . . . . . . . . 5 . . Utility 22 | 1 1 3 1 . 7 . 5 . 4 . Device 12 | . 1 2 1 . 2 . 3 . 3 . Storage 3 | 1 . . . . 1 . . . 1 . Processor 1 | . . . . . . . 1 . . . Hackware . | . . . . . . . . . . . Protection 6 | . . 1 . . 4 . 1 . . . Artifact . | . . . . . . . . . . . Weapon 10 | 2 . 2 . . 4 1 . 1 . . Energy Gun 5 | 1 . 2 . . 1 . . 1 . . Energy Cannon . | . . . . . . . . . . . Ballistic Gun 1 | 1 . . . . . . . . . . Ballistic Cannon . | . . . . . . . . . . . Launcher 3 | . . . . . 2 1 . . . . Special Weapon . | . . . . . . . . . . . Impact Weapon . | . . . . . . . . . . . Slashing Weapon 1 | . . . . . 1 . . . . . Piercing Weapon . | . . . . . . . . . . . Special Melee Weapon . | . . . . . . . . . . . Unidentified Prototypes 1 | . . . . . 1 . . . . . Parts Lost 32 | . . . . . 10 . 1 18 . 3 Power 7 | . . . . . 4 . . 3 . . Propulsion 14 | . . . . . 4 . . 8 . 2 Utility 8 | . . . . . 2 . 1 4 . 1 Weapon 3 | . . . . . . . . 3 . . Highest Loss Streak 16 | . . . . . 6 . 1 16 . 3 To Critical Strikes . | . . . . . . . . . . . Average Backups 6 | . 1 4 7 8 6 8 9 6 2 2 Power . | . 1 1 . 1 . . 1 . . . Propulsion . | . . . 1 1 . . . . . . Utility 3 | . . 1 3 4 3 4 5 3 1 1 Weapon 2 | . . 1 2 2 2 3 3 2 1 1 Tool/Special . | . . . . . . . . . . . Unused Backups 5 | . . 2 1 . . . . 2 . . Power 2 | . . 2 . . . . . . . . Propulsion . | . . . . . . . . . . . Utility 2 | . . . 1 . . . . 1 . . Weapon 1 | . . . . . . . . 1 . . Tool/Special . | . . . . . . . . . . . Average Slot Usage (%) 92 | . 93 100 100 100 96 99 96 87 26 37 Engine 9 | . 14 14 9 . 12 7 7 9 . . Core 5 | . . . 4 14 5 7 4 4 2 4 Treads 21 | . 28 28 28 28 8 37 37 29 . . Leg 6 | . . . . . 16 . . . . . Device 14 | . 7 12 14 14 16 10 15 9 6 13 Storage 8 | . 14 14 14 14 9 7 6 4 4 4 Processor 1 | . . . . . . . 3 4 . . Protection 6 | . . 1 . . 9 11 5 9 . . Energy Gun 8 | . 14 23 28 28 12 2 . . . . Launcher 2 | . . . . . . 4 6 4 . . Slashing Weapon 4 | . . . . . 5 6 6 4 2 4 Peak Build Rating 61 | 6 7 11 18 18 37 39 57 61 53 53 Average Rating 33 | 4 6 8 14 18 28 34 50 54 38 46 On Entrance 22 | . 6 7 11 18 18 25 39 51 19 53 Naked Turns 24 | . . . . . . . . 5 . 19 Heaviest Build 64 | 13 14 18 23 23 41 46 56 64 19 19 Greatest Support 138 | 40 40 40 40 40 62 108 138 138 20 20 Greatest Overweight (x) 2 | . . . . . . . . 1 . 2 Average Overweight (x) . | . . . . . . . . . . . Largest Inventory Capacity 10 | 8 8 8 8 8 10 10 10 10 5 5 Average Capacity 9 | 6 8 8 8 8 9 10 10 9 5 5 Most Carried 10 | 4 2 8 8 8 10 9 10 9 5 2 Average Carried 6 | 1 1 4 7 8 6 8 9 6 2 2 Final Capacity 10 | 8 8 8 8 8 10 10 10 5 5 5 Final Carried 9 | 1 1 8 8 8 9 9 9 3 2 2 Class Distribution -------------------- 62% | Mutant 37% | Scavenger-Mutant Dominant Class ---------------- Mutant | -10/Materials Mutant | -10/Mines Mutant | -10/Exiles Mutant | -9/Mines Mutant | -8/Materials Scavenger-Mutant | -7/Factory Mutant | -6/Factory Scavenger-Mutant | -5/Factory Mutant | -4/Factory Mutant | -4/Garrison Resources | -11 -10 -10 -10 -9 -8 -7 -6 -5 -4 -4 ----------- Run | Yrd Mat Min Exi Min Mat Fac Fac Fac Fac Gar Matter Collected 1318 | 180 . 125 . 86 605 39 67 116 . 100 Remotely . | . . . . . . . . . . . Salvage Created 1747 | . . 130 . . 1222 39 178 178 . . Parts 103 | . . 9 . 2 71 2 9 10 . . Haulers Intercepted 1 | . . . . . 1 . . . . . Recyclers Shooed 2 | . . 2 . . . . . . . . Parts Field Recycled . | . . . . . . . . . . . Retrieved Matter . | . . . . . . . . . . . Parts Self-Destructed . | . . . . . . . . . . . Prevented . | . . . . . . . . . . . Kills | -11 -10 -10 -10 -9 -8 -7 -6 -5 -4 -4 ------- Run | Yrd Mat Min Exi Min Mat Fac Fac Fac Fac Gar Combat Hostiles Destroyed 38 | . . 2 . . 29 . 3 4 . . Melee 14 | . . . . . 9 . 3 2 . . Guns 13 | . . 2 . . 11 . . . . . AOE 9 | . . . . . 7 . . 2 . . Classes Destroyed 12 | . . 2 . 1 7 . 1 1 . . Worker 2 | . . . . . 1 . 1 . . . Builder 2 | . . . . 1 1 . . . . . Hauler 1 | . . . . . 1 . . . . . Recycler 5 | . . 2 . . 3 . . . . . Mechanic 1 | . . . . . . . . 1 . . Watcher 2 | . . . . . 1 1 . . . . Swarmer 14 | . . 2 . . 12 . . . . . Grunt 8 | . . . . . 8 . . . . . Brawler 1 | . . . . . 1 . . . . . Sentry 6 | . . . . . 5 . 1 . . . Hunter 3 | . . . . . 3 . . . . . Programmer 6 | . . . . . . . 2 4 . . Best Kill Streak 8 | . . 2 . 1 8 1 1 5 . . Combat Bots Only 7 | . . 2 . . 7 . 1 4 . . Max Kills in Single Turn 3 | . . 1 . 1 3 1 1 2 . . Gunslinging . | . . . . . . . . . . . Exploded 3 | . . . . . 3 . . 1 . . Melee 1 | . . . . . 1 . 1 1 . . Uniques/NPCs Destroyed . | . . . . . . . . . . . Combat | -11 -10 -10 -10 -9 -8 -7 -6 -5 -4 -4 -------- Run | Yrd Mat Min Exi Min Mat Fac Fac Fac Fac Gar Hostile Shots Fired 467 | . . 20 . . 167 . 31 133 . 116 Missed 121 | . . 9 . . 35 . 7 29 . 41 Hits 346 | . . 11 . . 132 . 24 104 . 75 Melee 26 | . . . . . 1 . . . . 25 Projectile 320 | . . 11 . . 131 . 24 104 . 50 Critical Strikes 25 | . . . . . 4 . 3 2 . 16 Part Disruptions 1 | . . . . . . . 1 . . . Damage Taken 6462 | . . 87 . . 1902 . 716 2323 . 1434 Core 2169 | . . 15 . . 361 . 57 575 . 1161 Absorbed by Shields 61 | . . . . . . . . . . 61 Core Remaining (%) 77 | 100 . . . 94 34 100 93 42 . . Volleys Fired 89 | . . 12 . . 62 . . 15 . . Largest 2 | . . 2 . . 2 . . 2 . . Hottest 130 | . . 115 . . 130 . . 101 . . Shots Fired 140 | . . 25 . . 95 . . 20 . . Gun 124 | . . 25 . . 90 . . 9 . . Cannon . | . . . . . . . . . . . Launcher 16 | . . . . . 5 . . 11 . . Special . | . . . . . . . . . . . Kinetic 5 | . . 5 . . . . . . . . Thermal 115 | . . 20 . . 90 . . 5 . . Explosive 16 | . . . . . 5 . . 11 . . Electromagnetic 4 | . . . . . . . . 4 . . Robot Hit Streak 15 | . . 5 . . 15 . . 7 . . Robot Miss Streak 3 | . . 3 . . 3 . . 2 . . Penetration Max . | . . . . . . . . . . . Secondary Targets 3 | . . 3 . . . . . . . . Max Gunslinging Chain 1 | . . 1 . . . . . . . . Shots Hit Robots 145 | . . 14 . . 93 2 8 27 . 1 Core Hits 78 | . . 9 . . 47 1 5 15 . 1 Critical Kills . | . . . . . . . . . . . Critical Parts Destroyed . | . . . . . . . . . . . Critical Strikes 7 | . . . . . 3 . 1 3 . . Burn 2 | . . . . . 2 . . . . . Sever 5 | . . . . . 1 . 1 3 . . Melee Attacks 164 | . . . . . 74 22 32 27 3 6 Impact . | . . . . . . . . . . . Slashing 164 | . . . . . 74 22 32 27 3 6 Piercing . | . . . . . . . . . . . Sneak Attacks 7 | . . . . . 5 1 1 . . . Combat Hostiles 2 | . . . . . 2 . . . . . Follow-up Attacks . | . . . . . . . . . . . Damage Inflicted 4325 | . . 206 . 12 2623 94 281 1049 . 60 Guns 1212 | . . 206 . . 949 . . 57 . . Cannons . | . . . . . . . . . . . Explosions 1174 | . . . . . 645 . . 529 . . Melee 1905 | . . . . . 1029 94 281 463 . 38 Ramming 34 | . . . . 12 . . . . . 22 Kinetic 46 | . . 46 . . . . . . . . Thermal 1157 | . . 160 . . 949 . . 48 . . Explosive 1174 | . . . . . 645 . . 529 . . Electromagnetic 9 | . . . . . . . . 9 . . Impact . | . . . . . . . . . . . Slashing 1905 | . . . . . 1029 94 281 463 . 38 Piercing . | . . . . . . . . . . . Highest Corruption 14 | . 7 7 7 7 . . 6 14 . . Average Corruption 5 | . 6 7 7 7 . . 4 10 . . Corruption Purged 6 | . . . . . . . 6 . . . Corruption Blocked . | . . . . . . . . . . . Effects 57 | . 1 8 14 7 . . 20 7 . . Message Errors 17 | . 1 3 2 3 . . 6 2 . . Matter Fused 16 | . . 1 7 2 . . 5 1 . . Heat Flow Errors 5 | . . . 1 1 . . 2 1 . . Energy Discharges 7 | . . 1 1 1 . . 3 1 . . Parts Rejected 1 | . . . . . . . . 1 . . Data Loss (minor) 5 | . . 1 3 . . . 1 . . . Data Loss (major) 3 | . . 1 . . . . 2 . . . Misfires 1 | . . 1 . . . . . . . . Alerts 1 | . . . . . . . 1 . . . Misdirections 1 | . . . . . . . . 1 . . Overload Shots . | . . . . . . . . . . . Overflow Damage 137 | . . . . . 43 27 6 61 . . Projectiles . | . . . . . . . . . . . Explosions 67 | . . . . . 13 . . 54 . . Melee 70 | . . . . . 30 27 6 7 . . Knockbacks . | . . . . . . . . . . . Impact . | . . . . . . . . . . . Kinetic . | . . . . . . . . . . . Secondary . | . . . . . . . . . . . Self-Inflicted Damage 247 | . . . . . 77 . . 160 . 10 Shots 6 | . . . . . 2 . . 4 . . Rammed 6 | . . . . 1 . . . . . 5 Targets Rammed 7 | . . . . 2 . . . . . 5 Kicked . | . . . . . . . . . . . Crushed 1 | . . . . 1 . . . . . . Highest Temperature 467 | . . 129 257 86 467 . 189 224 . 24 Average Temperature 83 | . . 53 141 44 90 . 96 113 . 16 Received Heat Transfer 703 | . . . . . 378 . 18 117 . 190 Effects 4 | . . . . . 4 . . . . . Shutdowns 2 | . . . . . 2 . . . . . Matter Decay 2 | . . . . . 2 . . . . . Siege Activations . | . . . . . . . . . . . Martial Activations . | . . . . . . . . . . . Shielding Activations . | . . . . . . . . . . . Robots Disrupted . | . . . . . . . . . . . Combat Hostiles . | . . . . . . . . . . . Robots Corrupted . | . . . . . . . . . . . Combat Hostiles . | . . . . . . . . . . . Parts Fried . | . . . . . . . . . . . Impact Corruptions . | . . . . . . . . . . . Robots Melted 2 | . . . . . 2 . . . . . Combat Hostiles 2 | . . . . . 2 . . . . . Parts Melted 8 | . . . . . 8 . . . . . Heat Transferred 2997 | . . 444 . . 2442 . . 111 . . Parts Sabotaged . | . . . . . . . . . . . Parts Stolen . | . . . . . . . . . . . Parts Stripped . | . . . . . . . . . . . Power Chain Reactions . | . . . . . . . . . . . Alert | -11 -10 -10 -10 -9 -8 -7 -6 -5 -4 -4 ------- Run | Yrd Mat Min Exi Min Mat Fac Fac Fac Fac Gar Maximum Alert Level 2 | . . . . . 2 1 . . . . Low Security (%) 74 | 100 100 100 . 100 45 78 100 100 100 100 Level 1 12 | . . . . . 23 21 . . . . Level 2 12 | . . . . . 30 . . . . . Level 3 . | . . . . . . . . . . . Level 4 . | . . . . . . . . . . . Level 5 . | . . . . . . . . . . . High Security . | . . . . . . . . . . . Max Security . | . . . . . . . . . . . Peak Influence 633 | . . 99 . 5 633 269 48 93 4 16 Initial 269 | . . . . . . 269 3 12 . 9 Average 119 | . . 33 . . 244 108 4 5 . 8 Influence Increases 1620 | . . 159 . 5 1063 41 112 213 20 7 Destroy 0b10 Robot/C 840 | . . 120 . . 580 . 60 80 . . Destroy 0b10 Robot/NC 65 | . . 10 . 5 35 5 5 5 . . Destroy Leader 236 | . . 20 . . 164 2 30 20 . . Allied During Kill 11 | . . 9 . . 2 . . . . . Successful Hack 43 | . . . . . 29 . . . 14 . Disable Machine 60 | . . . . . 60 . . . . . Destroy Structure 215 | . . . . . 58 19 17 108 6 7 Partial Spotted 15 | . . . . . 15 . . . . . Lose Combat Pursuer 135 | . . . . . 120 15 . . . . Influence Decreases 1620 | . . 159 . 5 470 626 94 239 6 21 Entered New Map 348 | . . . . . . 324 5 14 . 5 Time Decay 985 | . . 139 . 5 368 302 87 78 6 . Lost Part 255 | . . . . . 90 . 2 147 . 16 Lost Ally 32 | . . 20 . . 12 . . . . . Squads Dispatched 14 | . . 1 . . 6 2 4 1 . . Investigation 5 | . . 1 . . 3 1 . . . . Extermination 5 | . . . . . . 1 3 1 . . Reinforcement 3 | . . . . . 2 . 1 . . . Assault . | . . . . . . . . . . . Garrison 1 | . . . . . 1 . . . . . Intercept . | . . . . . . . . . . . Searches Triggered . | . . . . . . . . . . . Construction Impeded 1 | . . . . . 1 . . . . . Haulers Reinforced . | . . . . . . . . . . . Active Scanning Responses . | . . . . . . . . . . . Cargo Convoy Interrupts . | . . . . . . . . . . . Stealth | -11 -10 -10 -10 -9 -8 -7 -6 -5 -4 -4 --------- Run | Yrd Mat Min Exi Min Mat Fac Fac Fac Fac Gar Distress Signals 5 | . . . . . 3 1 1 . . . Communications Jammed . | . . . . . . . . . . . Distress Signals . | . . . . . . . . . . . Times Spotted 91 | . . 6 . 1 45 3 7 7 . 22 Peak Tracking Total 21 | . . 3 . 1 7 2 2 2 . 21 Tactical Retreats 6 | . . . . . 5 1 . . . . Traps | -11 -10 -10 -10 -9 -8 -7 -6 -5 -4 -4 ------- Run | Yrd Mat Min Exi Min Mat Fac Fac Fac Fac Gar Traps Triggered 8 | . 4 . . . 2 . . 1 . 1 Indirectly . | . . . . . . . . . . . Trap Hack Attempts . | . . . . . . . . . . . Triggered . | . . . . . . . . . . . Disarmed . | . . . . . . . . . . . Reprogrammed . | . . . . . . . . . . . Reused . | . . . . . . . . . . . Traps Extracted . | . . . . . . . . . . . Installed . | . . . . . . . . . . . Triggered . | . . . . . . . . . . . Machines | -11 -10 -10 -10 -9 -8 -7 -6 -5 -4 -4 ---------- Run | Yrd Mat Min Exi Min Mat Fac Fac Fac Fac Gar Machines Disabled 4 | . . . . . 4 . . . . . Max in Single Turn 2 | . . . . . 2 . . . . . Garrison Access 1 | . . . . . 1 . . . . . Machines Repaired . | . . . . . . . . . . . Machines Dismantled . | . . . . . . . . . . . Machines Sabotaged . | . . . . . . . . . . . Overloaded Fab Kills . | . . . . . . . . . . . Hacking | -11 -10 -10 -10 -9 -8 -7 -6 -5 -4 -4 --------- Run | Yrd Mat Min Exi Min Mat Fac Fac Fac Fac Gar Machines Accessed 22 | . . 1 2 . 12 1 2 . 4 . Terminals 14 | . . . . . 9 . 2 . 3 . Fabricators . | . . . . . . . . . . . Repair Stations . | . . . . . . . . . . . Recycling Units 2 | . . . . . 2 . . . . . Scanalyzers . | . . . . . . . . . . . Garrison Access 3 | . . . . . 1 1 . . 1 . Total Hacks 55 | . . 1 24 . 20 2 2 . 6 . Successful 37 | . . 1 24 . 11 . . . 1 . Failed 18 | . . . . . 9 2 2 . 5 . Catastrophic 3 | . . . . . 1 1 . . 1 . Database Lockouts . | . . . . . . . . . . . Manual 26 | . . . 1 . 19 . 2 . 4 . Terminals 21 | . . . . . 15 . 2 . 4 . Fabricators . | . . . . . . . . . . . Repair Stations . | . . . . . . . . . . . Recycling Units 4 | . . . . . 4 . . . . . Scanalyzers . | . . . . . . . . . . . Garrison Access 5 | . . . . . 1 2 . . 2 . Terminal Hacks 33 | . . 1 24 . 8 . . . . . Record 23 | . . . 23 . . . . . . . Open Door 1 | . . 1 . . . . . . . . Zone Layout 8 | . . . . . 8 . . . . . Proto ID Catalog 1 | . . . 1 . . . . . . . Fabricator Hacks . | . . . . . . . . . . . Repair Station Hacks . | . . . . . . . . . . . Recycling Unit Hacks . | . . . . . . . . . . . Scanalyzer . | . . . . . . . . . . . Garrison Access Hacks 2 | . . . . . 1 . . . 1 . Unlock Access 1 | . . . . . . . . . 1 . Seal Access 1 | . . . . . 1 . . . . . Unauthorized Hacks 2 | . . . . . 2 . . . . . Terminals . | . . . . . . . . . . . Fabricators . | . . . . . . . . . . . Repair Stations . | . . . . . . . . . . . Recycling Units 2 | . . . . . 2 . . . . . Reject 2 | . . . . . 2 . . . . . Scanalyzers . | . . . . . . . . . . . Garrison Access . | . . . . . . . . . . . Data Cores Recovered . | . . . . . . . . . . . Used . | . . . . . . . . . . . Hacking Detections 12 | . . . . . 5 1 2 . 4 . Full Trace Events 2 | . . . . . 1 1 . . . . Feedback Events . | . . . . . . . . . . . Feedback Blocked . | . . . . . . . . . . . Robot Schematics Acquired . | . . . . . . . . . . . Robots Built . | . . . . . . . . . . . Authchips . | . . . . . . . . . . . Time . | . . . . . . . . . . . Total Robot Build Rating . | . . . . . . . . . . . Part Schematics Acquired . | . . . . . . . . . . . Parts Built . | . . . . . . . . . . . Authchips . | . . . . . . . . . . . Time . | . . . . . . . . . . . Total Part Build Rating . | . . . . . . . . . . . Parts Repaired . | . . . . . . . . . . . Time . | . . . . . . . . . . . Parts Recycled . | . . . . . . . . . . . Recycled Matter . | . . . . . . . . . . . Retrieved Matter . | . . . . . . . . . . . Retrieved Components . | . . . . . . . . . . . Parts Scanalyzed . | . . . . . . . . . . . Part Schematics Acquired . | . . . . . . . . . . . Parts Damaged . | . . . . . . . . . . . Bothacking | -11 -10 -10 -10 -9 -8 -7 -6 -5 -4 -4 ------------ Run | Yrd Mat Min Exi Min Mat Fac Fac Fac Fac Gar Used RIF Installer 1 | . . . . . . . . . . 1 Robots Hacked . | . . . . . . . . . . . Non-combat . | . . . . . . . . . . . Combat . | . . . . . . . . . . . Robot Hacks Applied . | . . . . . . . . . . . Relay Couplers Released . | . . . . . . . . . . . Fabnet Peak Effective % . | . . . . . . . . . . . Robots Rewired . | . . . . . . . . . . . Allies Hacked . | . . . . . . . . . . . Hacks Repelled . | . . . . . . . . . . . Allies | -11 -10 -10 -10 -9 -8 -7 -6 -5 -4 -4 -------- Run | Yrd Mat Min Exi Min Mat Fac Fac Fac Fac Gar Total Allies 5 | . . 3 . 2 . . . . . . Largest Group 3 | . . 3 1 3 1 . . . . . Highest-Rated Group 62 | . . 40 16 62 31 . . . . . Highest-Rated Ally 31 | . . 16 16 31 31 . . . . . Total Orders . | . . . . . . . . . . . Ally Attacks 24 | . . 14 . 8 2 . . . . . Total Damage 281 | . . 160 . 100 21 . . . . . Kills 5 | . . 4 . 1 . . . . . . Allies Corrupted . | . . . . . . . . . . . Allies Melted . | . . . . . . . . . . . Intel | -11 -10 -10 -10 -9 -8 -7 -6 -5 -4 -4 ------- Run | Yrd Mat Min Exi Min Mat Fac Fac Fac Fac Gar Active Infowar (turns) 3533 | . 62 78 36 . 963 366 1328 629 71 . Optics 1404 | . . . . . . . 775 629 . . Terrain 140 | . 62 78 . . . . . . . . Cloaking 3189 | . . . 36 . 963 366 1294 529 1 . Jamming 70 | . . . . . . . . . 70 . ECM 1 | . . . . . . . 1 . . . Robot Analysis Total . | . . . . . . . . . . . Derelict Logs Recovered . | . . . . . . . . . . . Drone Launches . | . . . . . . . . . . . Drone Recoveries . | . . . . . . . . . . . Exploration | -11 -10 -10 -10 -9 -8 -7 -6 -5 -4 -4 ------------- Run | Yrd Mat Min Exi Min Mat Fac Fac Fac Fac Gar Turns Passed 7227 | 58 103 397 359 180 2920 761 1328 691 180 250 Spaces Moved 3924 | 35 64 207 220 96 1345 371 737 420 282 147 Core 75 | 9 . . . . . . . 29 . 37 Treads 2590 | 26 64 207 220 96 554 371 737 315 . . Legs 791 | . . . . . 791 . . . . . Wheels . | . . . . . . . . . . . Hover . | . . . . . . . . . . . Flight 468 | . . . . . . . . 76 282 110 Fastest Speed 36 | 50 160 160 160 160 120 157 157 36 39 39 Average Speed 134 | 131 160 160 160 160 137 157 157 129 39 43 Slowest Speed 160 | 160 160 160 160 160 160 157 157 157 39 120 Overloaded Moves . | . . . . . . . . . . . Propulsion Burnouts . | . . . . . . . . . . . Robots Hopped 2 | . . . . . . . . . . 2 Potential Cave-ins 3 | . . . . . . . . 3 . . Cave-ins Triggered 2 | . . . . . . . 1 1 . . Exploration Rate (%) 29 | 3 14 49 61 28 79 15 22 17 8 28 Regions Visited 10 Branch Regions 3 Pre-discovered Areas 1 | . . . 1 . . . . . . . Known Exits Taken 1 | . . . . . . . . . 1 . Unknown Exits Taken 9 | 1 1 1 1 1 1 1 1 1 . . Scrap Searched 2 | . . 1 . 1 . . . . . . Spaces Dug 81 | . . . . . 29 20 19 9 3 1 Terrain Destroyed 190 | . . . . . 59 20 19 88 3 1 Melee 81 | . . . . . 29 20 19 9 3 1 Projectile . | . . . . . . . . . . . AOE 109 | . . . . . 30 . . 79 . . Terrain Rammed . | . . . . . . . . . . . Walls Destroyed . | . . . . . . . . . . . Machines Disabled . | . . . . . . . . . . . Actions | -11 -10 -10 -10 -9 -8 -7 -6 -5 -4 -4 --------- Run | Yrd Mat Min Exi Min Mat Fac Fac Fac Fac Gar Total 5474 | 47 65 251 229 121 2206 515 863 508 347 322 Wait 1066 | . . 6 . 24 619 115 68 24 50 160 Move 3909 | 34 63 206 219 95 1344 370 736 418 281 143 Hop 2 | . . . . . . . . . . 2 Pick Up 79 | 7 1 14 4 . 30 2 10 6 5 . Fast Attach . | . . . . . . . . . . . Attach 60 | 6 1 2 2 . 27 2 5 8 7 . Detach 7 | . . . . . 5 . . 1 1 . Swap 45 | . . 4 . . 30 4 5 2 . . Drop 40 | . . 7 4 . 15 . 7 6 . 1 Fire 89 | . . 12 . . 62 . . 15 . . Melee 164 | . . . . . 74 22 32 27 3 6 Ram 5 | . . . . . . . . . . 5 Kick . | . . . . . . . . . . . Crush 2 | . . . . 2 . . . . . . Escape Stasis 6 | . . . . . . . . 1 . 5 Rewire . | . . . . . . . . . . . Trap . | . . . . . . . . . . . Miscellaneous . | . . . . . . . . . . . Route ------- -11/Scrapyard -10/Materials -10/Mines (discovered 3 exits: [*Mat] / *Exi / [*Sub]) -10/Exiles -9/Mines -8/Materials -7/Factory (discovered 2 exits: *Fac / [*Low]) -6/Factory -5/Factory -4/Factory -4/Garrison History --------- Turn | Location | Event 6 | -11/Scrapyard | Discovered new exit (range 14) 59 | -11/Scrapyard | Entered Materials 141 | -10/Materials | Discovered new exit (range 13) 162 | -10/Materials | Entered Mines 164 | -10/Mines | Assisted by bots powering up and referring to "LRC-V3" 337 | -10/Mines | Build established: Mutant 362 | -10/Mines | Discovered new exit (range 8) 391 | -10/Mines | Met a Derelict shopkeep closing up shop 527 | -10/Mines | Discovered new exit (range 9) 551 | -10/Mines | Deemed a non-threat by the Exiles lab entrance 552 | -10/Mines | Discovered new exit (range 5) 559 | -10/Mines | Entered Exiles 559 | -10/Exiles | Accompanied by 1 ally 599 | -10/Exiles | Met 8R-AWN 623 | -10/Exiles | Met EX-HEX 670 | -10/Exiles | Met EX-BIN 689 | -10/Exiles | Aligned with FarCom system 691 | -10/Exiles | Given EX-Vault access code 731 | -10/Exiles | Opened EX-Vault 741 | -10/Exiles | Found Cloak of Protection 779 | -10/Exiles | Warned to stay clear of 0b10 Research branches 831 | -10/Exiles | Met EX-DEC 843 | -10/Exiles | Learned location of Zion (-6) 902 | -10/Exiles | Discovered new exit (range 11) 918 | -10/Exiles | Left Exiles lab with Cloak of Protection 918 | -10/Exiles | Entered Mines 918 | -9/Mines | Accompanied by 1 ally 982 | -9/Mines | Assembled infested the area 987 | -9/Mines | Assisted by a Guerilla fighting off Assembled 1083 | -9/Mines | Discovered new exit (range 9) 1098 | -9/Mines | Entered Materials 1098 | -8/Materials | Accompanied by 1 ally 1098 | -8/Materials | Evolved 4 slots: Power x1, Propulsion x1, Utility x2 1103 | -8/Materials | Led the pair of lost Derelicts to an unsafe place 1157 | -8/Materials | Garrison activated, responded to threat 2357 | -8/Materials | Destroyed 7 combat bots 3266 | -8/Materials | Lost 6 parts (2p2n2u) 3336 | -8/Materials | Core integrity fell below 50% 3463 | -8/Materials | Lost 3 parts (1p2n) 3536 | -8/Materials | Build established: Scavenger-Mutant 3572 | -8/Materials | Discovered new exit (range 8) 4018 | -8/Materials | Entered Factory 4018 | -7/Factory | Evolved 2 slots: Propulsion x2 4102 | -7/Factory | Discovered new exit (range 4) 4772 | -7/Factory | Discovered new exit (range 6) 4779 | -7/Factory | Entered another Factory area 4779 | -6/Factory | Evolved 2 slots: Propulsion x1, Utility x1 5034 | -6/Factory | Crushed by falling debris 5501 | -6/Factory | Build established: Mutant 6055 | -6/Factory | Discovered new exit (range 19) 6107 | -6/Factory | Entered another Factory area 6107 | -5/Factory | Evolved 2 slots: Power x1, Utility x1 6395 | -5/Factory | Build established: Scavenger-Mutant 6691 | -5/Factory | System corruption reached 10% 6736 | -5/Factory | Crushed by falling debris 6752 | -5/Factory | Core integrity fell below 50% 6770 | -5/Factory | Lost 16 parts (3p6n4u3w) 6790 | -5/Factory | Discovered new exit (range 16) 6798 | -5/Factory | Entered another Factory area 6798 | -4/Factory | Evolved 2 slots: Utility x2 6938 | -4/Factory | Build established: Mutant 6978 | -4/Factory | Identified exit to Garrison 6978 | -4/Factory | Entered Garrison 7160 | -4/Garrison | Triggered checkpoint 7213 | -4/Garrison | Core integrity fell below 50% 7222 | -4/Garrison | Core integrity fell below 20% 7223 | -4/Garrison | Installed Relay Interface Framework 7228 | -4/Garrison | Destroyed by S-27 Virus with Autogun Last Messages --------------- Scythe severed. Slug penetrates Wall. Field strength at 18. Stasis field depleted. Dropped Energy Well. Penetrated by Slug. Adv. Transmission Jammer severed. Critical hit (Burn: +50). Critical hit (Burn: +37). Garrison Door activated. S-27 Virus destroyed. C-30 ARC bursts open, deploying its payload. S-27 Virus unfolds itself. [Achievement: Hunted] Initiating installation procedure... Relay Interface Framework installed. Slammed into C-35 Carver. Slammed into S-27 Virus. S-27 Virus suffers critical hit (Burn). S-27 Virus destroyed. Map ----- +----------------------------------------------------+ | ?????????????????????????????????????????????????? | | ?????????????????????????????????????????????????? | | #####????????????????????????????????????????????? | | #????????????????????????????????????????????? | | #????????????????????????????????????????????? | | #????????????????????????????????????????????? | | # #????????????????????????????????????????????? | | # #????????????????????????????????????????????? | | # #????????????????????????????????????????????? | | # #????????????????????????????????????????????? | | # #????????????????????????????????????????????? | | # #????????????????????????????????????????????? | | # #????????????????????????????????????????????? | | # #????????????????????????????????????????????? | | # #????????????????????????????????????????????? | | " #????????????????????????????????????????????? | | # #????????????????????????????????????????????? | | "* #????????????????????????????????????????????? | | + #????????????????#####???????????????????????? | | # #????????????????#"""#???????????????????????? | | # #????????????????#"c"#???????????????????????? | | # #????????????????#"c"#???????????????????????? | | # #????????????????#"s"#???????????????????????? | | # #????????????????# c #???????????????????????? | | # #????????????????##c############?????????????? | | # #?????????????????#s @ #????????? | | #?????????????????# s #????????? | | #?????????????????# ########### #???????????? | | # #????????h????????# s#???????????????????????? | | # #????????h????????# s#???????????????????????? | | # #?????????????????# =#???????????????????????? | | # #?????????????????# #???????????????????????? | | #/ #?????????????????# s#???????????????Y???????? | | # !#?????????????????#==#???????????????????????? | | # ####+####++##""""##g%##??????????????????????? | | + g g %* #??????????????????????? | | # ! g g #??????????????????????? | | # #??????????????????????? | | ############ ## ## l#??????????????????????? | | ???????????# ## ## #??????????????????????? | | ???????????" g ??????????????????????? | | ???????????" ??????????????????????? | | ???????????" g ??????????????????????? | | ???????????" ?????????????????????? | | ???????????# ## ## ##?????????????????????? | | ???????????# ## ## #??????????????????????? | | ??????????? ? ?????????????????????? | | ??????????? ?????????????????????? | | ???????????# ##?????????????????????? | | ???????????## ##""""## ##??????????????????????? | +----------------------------------------------------+ Best States ------------- Heat Dissipation 73 Energy Generation 40 Energy Capacity 450 Matter Stores 300 Matter Capacity 300 Sight Range 22 Terrain Scan Range 14 Terrain Scan Density 10 Jamming Range 16 Cloak Strength 5 Power Amplification 30 Armor Coverage 375 Propulsion Shielding 33 Evasion (%) 74 Recoil Reduction 6 Item Schematics ----------------- None Robot Schematics ------------------ None Fabricated ------------ Nothing Repaired ---------- Nothing Alien Tech Used ----------------- None Achievements -------------- Hunted Part-time Excavator Challenges ------------ None Game ------ Seed SlugFrostExtrapolator Manual? 0 Play Time 01:20:22 Cumulative 37.8 hours Start 2025.10.19 @ 16:02:20 End 2025.10.19 @ 18:24:27 Sessions 1 Manual Loads 0 Difficulty Rogue Special Mode None Game No. 90 Rogue 90 Adventurer 0 Explorer 0 Win Type - Total 0 Types 0/0/0/0/0/0/0/0/0/0 Lore% 24 Gallery% 33 Achievement% 30 Wizard Run 0 Options --------- Layout 2 ASCII 0 Keyboard 0 Movement Numpad Keybinds 0 Fullscreen 1 Font 24/Smallcaps Map View 50x44 Zoom Use 0% Tactical HUD 0 Map Filters NONE Filters NONE Steam 1 RUN: 1f44e911-cdef-4f92-ba36-5114c555f53f